[Event "Titled Tuesday Blitz March 14 Late 2023"]
[White "Ansh M Shah"]
[Black "Dylag, Emilia"]
[WhiteFideId "25033379"]
[BlackFideId "21805172"]
[WhiteElo "2084"]
[BlackElo "1878"]
[Result "1-0"]
[Round "03"]
[TimeControl "180+1"]
[Date "2023.03.14"]
[WhiteClock "0:02:24"]
[BlackClock "0:02:24"]

1. d4 {[%clk 0:03:00]}  Nf6 {[%clk 0:02:58]} 2. c4 {[%clk 0:03:00]}  e6 {[%clk 0:02:58]} 3. g3 {[%clk 0:02:59]}  d5 {[%clk 0:02:56]} 4. Bg2 {[%clk 0:02:57]}  Bd6 {[%clk 0:02:55]} 5. Nf3 {[%clk 0:02:57]}  h6 {[%clk 0:02:55]} 6. O-O {[%clk 0:02:57]}  O-O {[%clk 0:02:55]} 7. Nfd2 {[%clk 0:02:54]}  b6 {[%clk 0:02:52]} 8. Nc3 {[%clk 0:02:46]}  Bb7 {[%clk 0:02:47]} 9. e4 {[%clk 0:02:46]}  dxe4 {[%clk 0:02:46]} 10. Ndxe4 {[%clk 0:02:47]}  Nxe4 {[%clk 0:02:46]} 11. Nxe4 {[%clk 0:02:48]}  c6 {[%clk 0:02:41]} 12. c5 {[%clk 0:02:34]}  Be7 {[%clk 0:02:38]} 13. Bf4 {[%clk 0:02:33]}  Na6 {[%clk 0:02:29]} 14. Rc1 {[%clk 0:02:27]}  Bf6 {[%clk 0:02:24]} 15. Nd6 {[%clk 0:02:24]} 1-0


[Site "https://www.chess.com"]

[Event "Titled Tuesday Blitz March 14 Late 2023"]
[White "Aung Thant Zin"]
[Black "Sarkar, Justin"]
[WhiteFideId "13000063"]
[BlackFideId "2010011"]
[WhiteElo "2278"]
[BlackElo "2189"]
[Result "1-0"]
[Round "03"]
[TimeControl "180+1"]
[Date "2023.03.14"]
[WhiteClock "0:00:44"]
[BlackClock "0:00:01"]

1. e4 {[%clk 0:02:59]}  e5 {[%clk 0:02:58]} 2. Nf3 {[%clk 0:02:59]}  Nc6 {[%clk 0:02:57]} 3. d4 {[%clk 0:02:59]}  exd4 {[%clk 0:02:56]} 4. Nxd4 {[%clk 0:03:00]}  Nf6 {[%clk 0:02:56]} 5. Nc3 {[%clk 0:03:00]}  Bb4 {[%clk 0:02:48]} 6. Nxc6 {[%clk 0:02:59]}  bxc6 {[%clk 0:02:48]} 7. Bd3 {[%clk 0:02:59]}  O-O {[%clk 0:02:43]} 8. O-O {[%clk 0:02:59]}  d5 {[%clk 0:02:34]} 9. exd5 {[%clk 0:02:59]}  cxd5 {[%clk 0:02:34]} 10. Bg5 {[%clk 0:02:59]}  c6 {[%clk 0:02:29]} 11. h3 {[%clk 0:02:59]}  h6 {[%clk 0:02:23]} 12. Bd2 {[%clk 0:02:56]}  Bd6 {[%clk 0:02:16]} 13. Qf3 {[%clk 0:02:52]}  Rb8 {[%clk 0:02:05]} 14. b3 {[%clk 0:02:51]}  Be5 {[%clk 0:02:02]} 15. Rae1 {[%clk 0:02:48]}  Re8 {[%clk 0:01:48]} 16. Na4 {[%clk 0:02:46]}  Qd6 {[%clk 0:01:39]} 17. Rxe5 {[%clk 0:02:25]}  Rxe5 {[%clk 0:01:31]} 18. Bf4 {[%clk 0:02:25]}  Nd7 {[%clk 0:01:06]} 19. Qe3 {[%clk 0:01:26]}  Rxe3 {[%clk 0:00:17]} 20. Bxd6 {[%clk 0:01:26]}  Rxd3 {[%clk 0:00:16]} 21. cxd3 {[%clk 0:01:17]}  Rb5 {[%clk 0:00:12]} 22. Rc1 {[%clk 0:01:15]}  Bb7 {[%clk 0:00:10]} 23. d4 {[%clk 0:01:07]}  a5 {[%clk 0:00:07]} 24. Re1 {[%clk 0:01:06]}  Nf6 {[%clk 0:00:06]} 25. Re7 {[%clk 0:01:03]}  Bc8 {[%clk 0:00:05]} 26. Be5 {[%clk 0:00:56]}  Be6 {[%clk 0:00:02]} 27. Nc5 {[%clk 0:00:54]}  Rb4 {[%clk 0:00:01]} 28. Nxe6 {[%clk 0:00:52]}  fxe6 {[%clk 0:00:01]} 29. Rxe6 {[%clk 0:00:49]}  a4 {[%clk 0:00:01]} 30. Rxc6 {[%clk 0:00:45]}  axb3 {[%clk 0:00:01]} 31. axb3 {[%clk 0:00:46]}  Rxb3 {[%clk 0:00:01]} 32. Bxf6 {[%clk 0:00:45]}  gxf6 {[%clk 0:00:01]} 33. Rxf6 {[%clk 0:00:44]}  Kg7 {[%clk 0:00:01]} 34. Rd6 {[%clk 0:00:44]}  Rb5 {[%clk 0:00:02]} 35. Kh2 {[%clk 0:00:44]}  h5 {[%clk 0:00:01]} 36. Kg3 {[%clk 0:00:44]} 1-0


[Site "https://www.chess.com"]

[Event "Titled Tuesday Blitz March 14 Late 2023"]
[White "Avalos Parra, Joao"]
[Black "Melikyan, Gnel"]
[WhiteFideId "3402541"]
[BlackFideId "54109990"]
[WhiteElo "2173"]
[BlackElo "2138"]
[Result "0-1"]
[Round "03"]
[TimeControl "180+1"]
[Date "2023.03.14"]
[WhiteClock "0:00:13"]
[BlackClock "0:02:10"]

1. d4 {[%clk 0:00:25]}  b5 {[%clk 0:02:48]} 2. c4 {[%clk 0:00:26]}  bxc4 {[%clk 0:02:48]} 3. Nf3 {[%clk 0:00:26]}  Nf6 {[%clk 0:02:47]} 4. g3 {[%clk 0:00:27]}  d5 {[%clk 0:02:47]} 5. Bg2 {[%clk 0:00:28]}  e6 {[%clk 0:02:47]} 6. O-O {[%clk 0:00:29]}  c5 {[%clk 0:02:47]} 7. b3 {[%clk 0:00:30]}  cxb3 {[%clk 0:02:47]} 8. Qxb3 {[%clk 0:00:31]}  Nc6 {[%clk 0:02:46]} 9. Bg5 {[%clk 0:00:28]}  c4 {[%clk 0:02:45]} 10. Qc2 {[%clk 0:00:26]}  Be7 {[%clk 0:02:43]} 11. Nc3 {[%clk 0:00:26]}  h6 {[%clk 0:02:42]} 12. Bxf6 {[%clk 0:00:25]}  Bxf6 {[%clk 0:02:43]} 13. Rfd1 {[%clk 0:00:25]}  O-O {[%clk 0:02:43]} 14. e4 {[%clk 0:00:25]}  Nb4 {[%clk 0:02:43]} 15. Qe2 {[%clk 0:00:25]}  Bb7 {[%clk 0:02:42]} 16. e5 {[%clk 0:00:25]}  Be7 {[%clk 0:02:42]} 17. Rab1 {[%clk 0:00:23]}  Bc6 {[%clk 0:02:40]} 18. h4 {[%clk 0:00:20]}  a5 {[%clk 0:02:39]} 19. Nh2 {[%clk 0:00:20]}  Re8 {[%clk 0:02:36]} 20. Qh5 {[%clk 0:00:20]}  Bf8 {[%clk 0:02:36]} 21. Ng4 {[%clk 0:00:20]}  Rb8 {[%clk 0:02:31]} 22. Ne3 {[%clk 0:00:21]}  g6 {[%clk 0:02:29]} 23. Qg4 {[%clk 0:00:21]}  Nd3 {[%clk 0:02:29]} 24. Rxb8 {[%clk 0:00:20]}  Qxb8 {[%clk 0:02:29]} 25. Nxc4 {[%clk 0:00:20]}  Nb2 {[%clk 0:02:22]} 26. Nxb2 {[%clk 0:00:19]}  Qxb2 {[%clk 0:02:23]} 27. Ne2 {[%clk 0:00:19]}  Ba4 {[%clk 0:02:19]} 28. Re1 {[%clk 0:00:17]}  Bb4 {[%clk 0:02:18]} 29. Rf1 {[%clk 0:00:17]}  h5 {[%clk 0:02:16]} 30. Qf3 {[%clk 0:00:16]}  Bb5 {[%clk 0:02:17]} 31. Nf4 {[%clk 0:00:15]}  Bxf1 {[%clk 0:02:16]} 32. Bxf1 {[%clk 0:00:16]}  Qxd4 {[%clk 0:02:16]} 33. g4 {[%clk 0:00:15]}  Bd2 {[%clk 0:02:15]} 34. Nxh5 {[%clk 0:00:13]}  gxh5 {[%clk 0:02:14]} 35. gxh5 {[%clk 0:00:14]}  Qxe5 {[%clk 0:02:14]} 36. Bd3 {[%clk 0:00:14]}  f5 {[%clk 0:02:11]} 37. h6 {[%clk 0:00:13]}  Kh7 {[%clk 0:02:11]} 38. Qh5 {[%clk 0:00:13]}  Rg8+ {[%clk 0:02:11]} 39. Kh1 {[%clk 0:00:12]}  Qe1+ {[%clk 0:02:11]} 40. Kh2 {[%clk 0:00:12]}  Qg1+ {[%clk 0:02:10]} 41. Kh3 {[%clk 0:00:13]}  Qh1# {[%clk 0:02:10]} 0-1


[Site "https://www.chess.com"]

[Event "Titled Tuesday Blitz March 14 Late 2023"]
[White "Avila Pavas, Santiago"]
[Black "Lenderman, Aleksandr"]
[WhiteFideId "4437128"]
[BlackFideId "2021285"]
[WhiteElo "2365"]
[BlackElo "2607"]
[Result "0-1"]
[Round "03"]
[TimeControl "180+1"]
[Date "2023.03.14"]
[WhiteClock "0:00:03"]
[BlackClock "0:00:07"]

1. d4 {[%clk 0:03:00]}  e6 {[%clk 0:02:57]} 2. Nf3 {[%clk 0:02:59]}  Nf6 {[%clk 0:02:54]} 3. Bf4 {[%clk 0:02:59]}  d5 {[%clk 0:02:53]} 4. e3 {[%clk 0:03:00]}  Bd6 {[%clk 0:02:52]} 5. Bg3 {[%clk 0:03:00]}  O-O {[%clk 0:02:52]} 6. Nbd2 {[%clk 0:03:00]}  c5 {[%clk 0:02:48]} 7. c3 {[%clk 0:03:00]}  Qc7 {[%clk 0:02:44]} 8. Bd3 {[%clk 0:02:58]}  Nbd7 {[%clk 0:02:43]} 9. e4 {[%clk 0:02:58]}  cxd4 {[%clk 0:02:36]} 10. Nxd4 {[%clk 0:02:59]}  Bxg3 {[%clk 0:02:32]} 11. hxg3 {[%clk 0:02:59]}  Nc5 {[%clk 0:02:32]} 12. Bc2 {[%clk 0:02:58]}  dxe4 {[%clk 0:02:30]} 13. Qe2 {[%clk 0:02:38]}  e5 {[%clk 0:02:26]} 14. N4b3 {[%clk 0:02:38]}  Bg4 {[%clk 0:02:13]} 15. Qe3 {[%clk 0:02:38]}  Nd3+ {[%clk 0:02:13]} 16. Bxd3 {[%clk 0:02:39]}  exd3 {[%clk 0:02:14]} 17. Qxd3 {[%clk 0:02:39]}  Rad8 {[%clk 0:02:13]} 18. Qe3 {[%clk 0:02:36]}  Bf5 {[%clk 0:02:08]} 19. O-O {[%clk 0:02:31]}  b6 {[%clk 0:02:01]} 20. Rfe1 {[%clk 0:02:29]}  Rfe8 {[%clk 0:02:01]} 21. Nf3 {[%clk 0:02:26]}  h6 {[%clk 0:01:53]} 22. Rad1 {[%clk 0:02:20]}  Ng4 {[%clk 0:01:48]} 23. Qe2 {[%clk 0:02:18]}  e4 {[%clk 0:01:41]} 24. Nfd4 {[%clk 0:02:14]}  Bc8 {[%clk 0:01:32]} 25. Nb5 {[%clk 0:01:42]}  Qe5 {[%clk 0:01:30]} 26. Rxd8 {[%clk 0:01:30]}  Rxd8 {[%clk 0:01:28]} 27. f3 {[%clk 0:01:07]}  Nf6 {[%clk 0:01:14]} 28. Nxa7 {[%clk 0:00:39]}  Bd7 {[%clk 0:01:12]} 29. Nd4 {[%clk 0:00:39]}  Qxg3 {[%clk 0:01:09]} 30. Qf2 {[%clk 0:00:36]}  Qd6 {[%clk 0:00:57]} 31. Nab5 {[%clk 0:00:35]}  Qc5 {[%clk 0:00:52]} 32. a4 {[%clk 0:00:33]}  exf3 {[%clk 0:00:47]} 33. Nxf3 {[%clk 0:00:34]}  Qh5 {[%clk 0:00:43]} 34. Re5 {[%clk 0:00:29]}  Qg6 {[%clk 0:00:40]} 35. Qxb6 {[%clk 0:00:29]}  Rf8 {[%clk 0:00:34]} 36. Nbd4 {[%clk 0:00:25]}  Bxa4 {[%clk 0:00:29]} 37. Nf5 {[%clk 0:00:23]}  Kh7 {[%clk 0:00:24]} 38. Qb4 {[%clk 0:00:22]}  Ra8 {[%clk 0:00:23]} 39. N3h4 {[%clk 0:00:20]}  Qg5 {[%clk 0:00:18]} 40. Re3 {[%clk 0:00:21]}  Bd1 {[%clk 0:00:10]} 41. Qe7 {[%clk 0:00:19]}  Bh5 {[%clk 0:00:06]} 42. Re1 {[%clk 0:00:12]}  Re8 {[%clk 0:00:06]} 43. Qxe8 {[%clk 0:00:11]}  Nxe8 {[%clk 0:00:07]} 44. Rxe8 {[%clk 0:00:11]}  Bg4 {[%clk 0:00:07]} 45. Re5 {[%clk 0:00:04]}  Bxf5 {[%clk 0:00:07]} 46. Nxf5 {[%clk 0:00:05]}  g6 {[%clk 0:00:07]} 47. b4 {[%clk 0:00:04]}  gxf5 {[%clk 0:00:07]} 48. Rc5 {[%clk 0:00:04]}  Qc1+ {[%clk 0:00:06]} 49. Kf2 {[%clk 0:00:05]}  Qd2+ {[%clk 0:00:06]} 50. Kf3 {[%clk 0:00:05]}  f4 {[%clk 0:00:06]} 51. Rc7 {[%clk 0:00:01]}  Qe3+ {[%clk 0:00:06]} 52. Kg4 {[%clk 0:00:01]}  Kg6 {[%clk 0:00:07]} 53. Rc6+ {[%clk 0:00:02]}  f6 {[%clk 0:00:07]} 54. Rc5 {[%clk 0:00:03]}  Qg3# {[%clk 0:00:07]} 0-1


[Site "https://www.chess.com"]

[Event "Titled Tuesday Blitz March 14 Late 2023"]
[White "Bilych, Olexiy"]
[Black "Rustemov, Alexander"]
[WhiteFideId "14156504"]
[BlackFideId "4119002"]
[WhiteElo "2320"]
[BlackElo "2940"]
[Result "1/2-1/2"]
[Round "03"]
[TimeControl "180+1"]
[Date "2023.03.14"]
[WhiteClock "0:00:08"]
[BlackClock "0:00:20"]

1. d4 {[%clk 0:03:00]}  d5 {[%clk 0:02:59]} 2. c4 {[%clk 0:03:01]}  c6 {[%clk 0:02:59]} 3. Nf3 {[%clk 0:03:01]}  Nf6 {[%clk 0:02:59]} 4. Nc3 {[%clk 0:03:01]}  a6 {[%clk 0:03:00]} 5. e3 {[%clk 0:03:00]}  Bf5 {[%clk 0:02:58]} 6. Qb3 {[%clk 0:02:58]}  Ra7 {[%clk 0:02:58]} 7. c5 {[%clk 0:02:54]}  Nbd7 {[%clk 0:02:55]} 8. Na4 {[%clk 0:02:49]}  e6 {[%clk 0:02:52]} 9. Bd2 {[%clk 0:02:48]}  Ne4 {[%clk 0:02:47]} 10. Be2 {[%clk 0:02:41]}  Be7 {[%clk 0:02:46]} 11. O-O {[%clk 0:02:40]}  O-O {[%clk 0:02:46]} 12. Rfd1 {[%clk 0:02:28]}  Re8 {[%clk 0:02:41]} 13. Rac1 {[%clk 0:02:27]}  Bf6 {[%clk 0:02:39]} 14. Be1 {[%clk 0:02:25]}  h6 {[%clk 0:02:35]} 15. Nb6 {[%clk 0:02:09]}  Nxb6 {[%clk 0:02:32]} 16. Ba5 {[%clk 0:02:09]}  Ra8 {[%clk 0:02:31]} 17. Bxb6 {[%clk 0:02:09]}  Qe7 {[%clk 0:02:29]} 18. Ne5 {[%clk 0:02:04]}  Bxe5 {[%clk 0:02:16]} 19. dxe5 {[%clk 0:02:04]}  f6 {[%clk 0:02:13]} 20. exf6 {[%clk 0:01:13]}  Nxf6 {[%clk 0:02:12]} 21. f3 {[%clk 0:01:04]}  e5 {[%clk 0:02:10]} 22. Ba5 {[%clk 0:00:58]}  Kh8 {[%clk 0:02:10]} 23. Be1 {[%clk 0:00:58]}  Rf8 {[%clk 0:02:03]} 24. Bh4 {[%clk 0:00:57]}  Rae8 {[%clk 0:02:03]} 25. Rd2 {[%clk 0:00:49]}  g5 {[%clk 0:02:03]} 26. Bg3 {[%clk 0:00:49]}  Nh5 {[%clk 0:02:00]} 27. e4 {[%clk 0:00:45]}  dxe4 {[%clk 0:01:42]} 28. fxe4 {[%clk 0:00:46]}  Be6 {[%clk 0:01:42]} 29. Bxe5+ {[%clk 0:00:45]}  Kh7 {[%clk 0:01:40]} 30. Qc3 {[%clk 0:00:42]}  Nf4 {[%clk 0:01:39]} 31. Bxf4 {[%clk 0:00:38]}  Rxf4 {[%clk 0:01:38]} 32. Rcd1 {[%clk 0:00:34]}  Bc8 {[%clk 0:01:35]} 33. g3 {[%clk 0:00:30]}  Rff8 {[%clk 0:01:25]} 34. Bh5 {[%clk 0:00:30]}  Rd8 {[%clk 0:01:23]} 35. Rd6 {[%clk 0:00:30]}  Rd7 {[%clk 0:01:11]} 36. Bg6+ {[%clk 0:00:28]}  Kg8 {[%clk 0:01:11]} 37. Bf5 {[%clk 0:00:28]}  Rxf5 {[%clk 0:00:46]} 38. exf5 {[%clk 0:00:26]}  Rxd6 {[%clk 0:00:42]} 39. cxd6 {[%clk 0:00:26]}  Qf7 {[%clk 0:00:41]} 40. f6 {[%clk 0:00:21]}  Be6 {[%clk 0:00:39]} 41. Qe5 {[%clk 0:00:21]}  Qd7 {[%clk 0:00:38]} 42. Re1 {[%clk 0:00:20]}  Kf7 {[%clk 0:00:39]} 43. Qe4 {[%clk 0:00:15]}  Qxd6 {[%clk 0:00:38]} 44. Qh7+ {[%clk 0:00:16]}  Kxf6 {[%clk 0:00:39]} 45. Qxh6+ {[%clk 0:00:12]}  Kf7 {[%clk 0:00:36]} 46. Rf1+ {[%clk 0:00:11]}  Ke8 {[%clk 0:00:35]} 47. Qh8+ {[%clk 0:00:11]}  Kd7 {[%clk 0:00:35]} 48. Qg7+ {[%clk 0:00:10]}  Ke8 {[%clk 0:00:35]} 49. Qg6+ {[%clk 0:00:10]}  Kd7 {[%clk 0:00:34]} 50. Qg7+ {[%clk 0:00:08]}  Ke8 {[%clk 0:00:34]} 51. Qxg5 {[%clk 0:00:07]}  Qd4+ {[%clk 0:00:32]} 52. Kg2 {[%clk 0:00:07]}  Bd5+ {[%clk 0:00:31]} 53. Kh3 {[%clk 0:00:06]}  Be6+ {[%clk 0:00:27]} 54. g4 {[%clk 0:00:06]}  Qd3+ {[%clk 0:00:27]} 55. Kg2 {[%clk 0:00:06]}  Bd5+ {[%clk 0:00:27]} 56. Kg1 {[%clk 0:00:06]}  Qd4+ {[%clk 0:00:27]} 57. Rf2 {[%clk 0:00:06]}  Qd1+ {[%clk 0:00:27]} 58. Rf1 {[%clk 0:00:07]}  Qd4+ {[%clk 0:00:27]} 59. Rf2 {[%clk 0:00:07]}  Qd1+ {[%clk 0:00:20]} 60. Rf1 {[%clk 0:00:08]}  Qd4+ {[%clk 0:00:20]} 1/2-1/2


[Site "https://www.chess.com"]

[Event "Titled Tuesday Blitz March 14 Late 2023"]
[White "Bochnicka, Vladimir"]
[Black "Ambartsumova, Karina"]
[WhiteFideId "14943450"]
[BlackFideId "4166299"]
[WhiteElo "2094"]
[BlackElo "2300"]
[Result "0-1"]
[Round "03"]
[TimeControl "180+1"]
[Date "2023.03.14"]
[WhiteClock "0:00:04"]
[BlackClock "0:00:14"]

1. e4 {[%clk 0:03:00]}  c5 {[%clk 0:02:59]} 2. Nf3 {[%clk 0:03:01]}  e6 {[%clk 0:03:00]} 3. g3 {[%clk 0:03:00]}  Nc6 {[%clk 0:02:56]} 4. Bg2 {[%clk 0:03:00]}  Nf6 {[%clk 0:02:56]} 5. d3 {[%clk 0:02:59]}  d6 {[%clk 0:02:48]} 6. O-O {[%clk 0:02:58]}  g6 {[%clk 0:02:49]} 7. Re1 {[%clk 0:02:58]}  Bg7 {[%clk 0:02:49]} 8. c3 {[%clk 0:02:58]}  e5 {[%clk 0:02:47]} 9. h3 {[%clk 0:02:58]}  O-O {[%clk 0:02:47]} 10. d4 {[%clk 0:02:46]}  Bd7 {[%clk 0:02:31]} 11. Be3 {[%clk 0:02:19]}  cxd4 {[%clk 0:02:31]} 12. cxd4 {[%clk 0:02:19]}  Nxe4 {[%clk 0:02:24]} 13. d5 {[%clk 0:01:36]}  Ne7 {[%clk 0:02:22]} 14. Nxe5 {[%clk 0:01:26]}  Bxe5 {[%clk 0:02:08]} 15. Bxe4 {[%clk 0:01:25]}  Bxb2 {[%clk 0:02:06]} 16. Nd2 {[%clk 0:01:19]}  Bxa1 {[%clk 0:01:39]} 17. Qxa1 {[%clk 0:01:19]}  Bxh3 {[%clk 0:01:40]} 18. Bh6 {[%clk 0:01:10]}  f6 {[%clk 0:01:39]} 19. Nc4 {[%clk 0:00:37]}  Rf7 {[%clk 0:01:36]} 20. Bf4 {[%clk 0:00:35]}  Nc8 {[%clk 0:01:21]} 21. Bc2 {[%clk 0:00:34]}  b5 {[%clk 0:01:17]} 22. Nd2 {[%clk 0:00:27]}  g5 {[%clk 0:01:08]} 23. Be3 {[%clk 0:00:24]}  Nb6 {[%clk 0:01:04]} 24. Bd4 {[%clk 0:00:20]}  Rc8 {[%clk 0:01:01]} 25. Bb3 {[%clk 0:00:19]}  Bf5 {[%clk 0:00:56]} 26. Nf3 {[%clk 0:00:14]}  h6 {[%clk 0:00:52]} 27. Bb2 {[%clk 0:00:14]}  Nc4 {[%clk 0:00:51]} 28. Bc3 {[%clk 0:00:14]}  a5 {[%clk 0:00:48]} 29. Nd4 {[%clk 0:00:14]}  Qd7 {[%clk 0:00:35]} 30. a4 {[%clk 0:00:08]}  b4 {[%clk 0:00:31]} 31. Bb2 {[%clk 0:00:05]}  Nxb2 {[%clk 0:00:25]} 32. Qxb2 {[%clk 0:00:06]}  Rc3 {[%clk 0:00:26]} 33. Ne6 {[%clk 0:00:05]}  Qc8 {[%clk 0:00:18]} 34. Bd1 {[%clk 0:00:04]}  Re7 {[%clk 0:00:16]} 35. Bf3 {[%clk 0:00:03]}  Kh7 {[%clk 0:00:15]} 36. Kg2 {[%clk 0:00:04]}  Bxe6 {[%clk 0:00:15]} 37. dxe6 {[%clk 0:00:04]}  Rxe6 {[%clk 0:00:16]} 38. Bg4 {[%clk 0:00:04]}  Qb7+ {[%clk 0:00:13]} 39. Kf1 {[%clk 0:00:03]}  Rxe1+ {[%clk 0:00:13]} 40. Kxe1 {[%clk 0:00:04]}  Qe4+ {[%clk 0:00:13]} 41. Be2 {[%clk 0:00:04]}  Rc2 {[%clk 0:00:14]} 42. Qb1 {[%clk 0:00:04]}  Qxe2# {[%clk 0:00:14]} 0-1


[Site "https://www.chess.com"]

[Event "Titled Tuesday Blitz March 14 Late 2023"]
[White "Bortnyk, Olexandr"]
[Black "Gasparyan, David"]
[WhiteFideId "14120828"]
[BlackFideId "13311980"]
[WhiteElo "2734"]
[BlackElo "2518"]
[Result "1-0"]
[Round "03"]
[TimeControl "180+1"]
[Date "2023.03.14"]
[WhiteClock "0:02:20"]
[BlackClock "0:00:03"]

1. d4 {[%clk 0:03:00]}  Nf6 {[%clk 0:02:59]} 2. Nc3 {[%clk 0:03:01]}  d5 {[%clk 0:02:58]} 3. Bf4 {[%clk 0:03:01]}  a6 {[%clk 0:02:57]} 4. e3 {[%clk 0:03:01]}  Bf5 {[%clk 0:02:57]} 5. Nf3 {[%clk 0:03:01]}  e6 {[%clk 0:02:58]} 6. Ne5 {[%clk 0:03:02]}  Nbd7 {[%clk 0:02:57]} 7. g4 {[%clk 0:03:02]}  Be4 {[%clk 0:02:52]} 8. f3 {[%clk 0:03:02]}  Bg6 {[%clk 0:02:53]} 9. h4 {[%clk 0:03:03]}  h6 {[%clk 0:02:37]} 10. Nxg6 {[%clk 0:03:03]}  fxg6 {[%clk 0:02:38]} 11. Bd3 {[%clk 0:03:04]}  Kf7 {[%clk 0:02:36]} 12. Ne2 {[%clk 0:03:00]}  c5 {[%clk 0:02:35]} 13. c3 {[%clk 0:02:56]}  cxd4 {[%clk 0:02:34]} 14. exd4 {[%clk 0:02:55]}  Qb6 {[%clk 0:02:32]} 15. Qc2 {[%clk 0:02:55]}  Bd6 {[%clk 0:02:29]} 16. Bxg6+ {[%clk 0:02:55]}  Ke7 {[%clk 0:02:27]} 17. O-O-O {[%clk 0:02:55]}  Raf8 {[%clk 0:02:15]} 18. Rhe1 {[%clk 0:02:54]}  Kd8 {[%clk 0:02:15]} 19. Kb1 {[%clk 0:02:54]}  Kc8 {[%clk 0:02:14]} 20. Qd2 {[%clk 0:02:50]}  e5 {[%clk 0:02:02]} 21. dxe5 {[%clk 0:02:49]}  Nxe5 {[%clk 0:02:02]} 22. Bxe5 {[%clk 0:02:49]}  Bxe5 {[%clk 0:02:02]} 23. Bf5+ {[%clk 0:02:50]}  Kb8 {[%clk 0:02:01]} 24. Nd4 {[%clk 0:02:51]}  Bd6 {[%clk 0:01:48]} 25. Re6 {[%clk 0:02:48]}  Re8 {[%clk 0:01:48]} 26. Rde1 {[%clk 0:02:48]}  Rxe6 {[%clk 0:01:48]} 27. Rxe6 {[%clk 0:02:49]}  Re8 {[%clk 0:01:47]} 28. g5 {[%clk 0:02:48]}  Rxe6 {[%clk 0:01:47]} 29. Nxe6 {[%clk 0:02:42]}  hxg5 {[%clk 0:01:41]} 30. hxg5 {[%clk 0:02:43]}  Nh5 {[%clk 0:00:54]} 31. Qxd5 {[%clk 0:02:38]}  Qg1+ {[%clk 0:00:53]} 32. Kc2 {[%clk 0:02:38]}  Qf2+ {[%clk 0:00:51]} 33. Qd2 {[%clk 0:02:37]}  Qxd2+ {[%clk 0:00:31]} 34. Kxd2 {[%clk 0:02:38]}  b5 {[%clk 0:00:20]} 35. Ke3 {[%clk 0:02:36]}  Ng3 {[%clk 0:00:20]} 36. Bg4 {[%clk 0:02:30]}  g6 {[%clk 0:00:18]} 37. Kf2 {[%clk 0:02:30]}  Kb7 {[%clk 0:00:15]} 38. f4 {[%clk 0:02:27]}  Ne4+ {[%clk 0:00:14]} 39. Ke3 {[%clk 0:02:28]}  Ng3 {[%clk 0:00:13]} 40. Bf3+ {[%clk 0:02:25]}  Kb6 {[%clk 0:00:12]} 41. Be4 {[%clk 0:02:26]}  Nf1+ {[%clk 0:00:08]} 42. Kf2 {[%clk 0:02:23]}  Nd2 {[%clk 0:00:08]} 43. Bxg6 {[%clk 0:02:24]}  Nc4 {[%clk 0:00:09]} 44. b3 {[%clk 0:02:23]}  Nb2 {[%clk 0:00:03]} 45. Bc2 {[%clk 0:02:20]}  a5 {[%clk 0:00:03]} 46. g6 {[%clk 0:02:20]} 1-0


[Site "https://www.chess.com"]

[Event "Titled Tuesday Blitz March 14 Late 2023"]
[White "Cheng, Xiao"]
[Black "Weetik, Vjacheslav"]
[WhiteFideId "2022915"]
[BlackFideId "4153472"]
[WhiteElo "2455"]
[BlackElo "2469"]
[Result "1/2-1/2"]
[Round "03"]
[TimeControl "180+1"]
[Date "2023.03.14"]
[WhiteClock "0:00:21"]
[BlackClock "0:00:10"]

1. e4 {[%clk 0:02:53]}  c6 {[%clk 0:03:00]} 2. d4 {[%clk 0:02:51]}  d5 {[%clk 0:03:00]} 3. exd5 {[%clk 0:02:51]}  cxd5 {[%clk 0:03:00]} 4. c3 {[%clk 0:02:51]}  Nc6 {[%clk 0:02:57]} 5. Na3 {[%clk 0:02:48]}  Bf5 {[%clk 0:02:50]} 6. Bd3 {[%clk 0:02:38]}  Bxd3 {[%clk 0:02:40]} 7. Qxd3 {[%clk 0:02:39]}  e5 {[%clk 0:02:40]} 8. dxe5 {[%clk 0:02:35]}  Bxa3 {[%clk 0:02:38]} 9. bxa3 {[%clk 0:02:33]}  Nxe5 {[%clk 0:02:37]} 10. Qe2 {[%clk 0:02:33]}  Qe7 {[%clk 0:02:36]} 11. Be3 {[%clk 0:02:28]}  Nf6 {[%clk 0:02:09]} 12. Qb5+ {[%clk 0:02:20]}  Nc6 {[%clk 0:01:40]} 13. Nf3 {[%clk 0:02:18]}  O-O {[%clk 0:01:40]} 14. O-O {[%clk 0:02:17]}  Rfd8 {[%clk 0:01:36]} 15. Bg5 {[%clk 0:02:11]}  Rab8 {[%clk 0:01:11]} 16. a4 {[%clk 0:02:09]}  h6 {[%clk 0:01:06]} 17. Bf4 {[%clk 0:02:06]}  Rbc8 {[%clk 0:01:03]} 18. Rab1 {[%clk 0:02:03]}  b6 {[%clk 0:01:00]} 19. Nd4 {[%clk 0:01:58]}  Nxd4 {[%clk 0:00:55]} 20. cxd4 {[%clk 0:01:57]}  Ne4 {[%clk 0:00:56]} 21. Qb3 {[%clk 0:01:32]}  Rc4 {[%clk 0:00:34]} 22. Rbe1 {[%clk 0:01:24]}  Qb4 {[%clk 0:00:24]} 23. f3 {[%clk 0:01:13]}  Nf6 {[%clk 0:00:20]} 24. Re7 {[%clk 0:01:08]}  Qxa4 {[%clk 0:00:19]} 25. Be5 {[%clk 0:01:05]}  Nd7 {[%clk 0:00:19]} 26. Qe3 {[%clk 0:00:58]}  Nxe5 {[%clk 0:00:16]} 27. dxe5 {[%clk 0:00:55]}  Qb4 {[%clk 0:00:13]} 28. Rxa7 {[%clk 0:00:52]}  Qc5 {[%clk 0:00:13]} 29. Qxc5 {[%clk 0:00:50]}  bxc5 {[%clk 0:00:14]} 30. Re1 {[%clk 0:00:47]}  Re8 {[%clk 0:00:10]} 31. Rc7 {[%clk 0:00:43]}  d4 {[%clk 0:00:11]} 32. f4 {[%clk 0:00:41]}  g6 {[%clk 0:00:09]} 33. Rd1 {[%clk 0:00:32]}  Rc3 {[%clk 0:00:08]} 34. a4 {[%clk 0:00:27]}  d3 {[%clk 0:00:08]} 35. Kf2 {[%clk 0:00:25]}  c4 {[%clk 0:00:08]} 36. Ke3 {[%clk 0:00:25]}  Ra8 {[%clk 0:00:08]} 37. Kd4 {[%clk 0:00:21]}  Rc2 {[%clk 0:00:08]} 38. Rxc4 {[%clk 0:00:20]}  Rxc4+ {[%clk 0:00:06]} 39. Kxc4 {[%clk 0:00:20]}  Rxa4+ {[%clk 0:00:07]} 40. Kxd3 {[%clk 0:00:20]}  Rxf4 {[%clk 0:00:08]} 41. Re1 {[%clk 0:00:20]}  Rf2 {[%clk 0:00:07]} 42. Re2 {[%clk 0:00:20]}  Rxe2 {[%clk 0:00:04]} 43. Kxe2 {[%clk 0:00:21]}  Kf8 {[%clk 0:00:04]} 44. Ke3 {[%clk 0:00:22]}  Ke7 {[%clk 0:00:05]} 45. Kf4 {[%clk 0:00:20]}  Ke6 {[%clk 0:00:05]} 46. Ke4 {[%clk 0:00:21]}  Ke7 {[%clk 0:00:03]} 47. Kd5 {[%clk 0:00:20]}  Kd7 {[%clk 0:00:04]} 48. g3 {[%clk 0:00:20]}  Ke7 {[%clk 0:00:04]} 49. h3 {[%clk 0:00:20]}  Kd7 {[%clk 0:00:04]} 50. Kd4 {[%clk 0:00:20]}  Ke7 {[%clk 0:00:03]} 51. Ke4 {[%clk 0:00:20]}  Ke6 {[%clk 0:00:04]} 52. g4 {[%clk 0:00:18]}  Ke7 {[%clk 0:00:04]} 53. Kd5 {[%clk 0:00:17]}  Kd7 {[%clk 0:00:04]} 54. Kd4 {[%clk 0:00:18]}  Ke7 {[%clk 0:00:05]} 55. Kd5 {[%clk 0:00:18]}  Kd7 {[%clk 0:00:05]} 56. h4 {[%clk 0:00:18]}  Ke7 {[%clk 0:00:05]} 57. Kd4 {[%clk 0:00:17]}  Ke6 {[%clk 0:00:05]} 58. Ke4 {[%clk 0:00:17]}  h5 {[%clk 0:00:05]} 59. gxh5 {[%clk 0:00:16]}  gxh5 {[%clk 0:00:05]} 60. Kf4 {[%clk 0:00:17]}  Kd5 {[%clk 0:00:06]} 61. Kf5 {[%clk 0:00:17]}  Kd4 {[%clk 0:00:06]} 62. Kf6 {[%clk 0:00:17]}  Ke4 {[%clk 0:00:06]} 63. Kxf7 {[%clk 0:00:17]}  Kxe5 {[%clk 0:00:06]} 64. Kg6 {[%clk 0:00:17]}  Ke6 {[%clk 0:00:07]} 65. Kxh5 {[%clk 0:00:18]}  Kf7 {[%clk 0:00:07]} 66. Kh6 {[%clk 0:00:18]}  Kg8 {[%clk 0:00:08]} 67. Kg6 {[%clk 0:00:19]}  Kh8 {[%clk 0:00:09]} 68. h5 {[%clk 0:00:19]}  Kg8 {[%clk 0:00:09]} 69. h6 {[%clk 0:00:20]}  Kh8 {[%clk 0:00:10]} 70. h7 {[%clk 0:00:21]} 1/2-1/2


[Site "https://www.chess.com"]